Cogmind - Beta 16 @@@ ROGUE MODE // 2025.11.15 @ 14:45:46 Player: Fuselflubel Result: Destroyed by L-31 Rogue with Katana Performance ------------- Evolutions (2) 1000 Regions Visited (3) 600 Robots Destroyed (41) 205 Value Destroyed (1593) 1593 Prototype IDs (3) 60 Alien Tech Used (0) 0 Bonus (119) 119 TOTAL SCORE: 3577 Bonus ------- High Alert Combat Kills 119 Cogmind --------- Core Integrity 0/550 Matter 300/300 Energy 42/100 System Corruption 0% Temperature Cool (0) Movement Core (50) Location -8/Materials Parts ------- > --- POWER (2) -------- (None) > --- PROPULSION (3) --- (None) > --- UTILITY (3) ------ Medium Storage Unit Advanced Weight Redist. System > --- WEAPON (3) ------- (None) > --- INVENTORY (10) --- Reinforced Ion Engine Light Nuclear Core Aluminum Leg Compact Battery (200) Reactive Plating Reactive Plating Hardlight Generator Peak State ------------ > --- POWER ------------ Ion Engine Light Nuclear Core > --- PROPULSION ------- Improved Treads Improved Treads Improved Treads > --- UTILITY ---------- Medium Storage Unit Heavy Armor Plating > --- WEAPON ----------- Improved EM Shotgun Heavy EM Shotgun Advanced Beam Rifle > --- INVENTORY -------- Light Treads Aluminum Leg Heat Sink Small Storage Unit Hardlight Generator Particle Gun Spread Laser Assault Rifle Improved Light Cannon Grenade Launcher [Rating: 29] Favorites ----------- Power Light Ion Engine Engine Light Ion Engine Power Core Light Nuclear Core Propulsion Improved Treads Treads Improved Treads Leg Aluminum Leg Utility Small Storage Unit Device Hardlight Generator Storage Small Storage Unit Protection Heavy Armor Plating Weapon Improved EM Shotgun Energy Gun Improved EM Shotgun Energy Cannon Heavy Particle Cannon Ballistic Gun Assault Rifle Ballistic Cannon Improved Light Cannon Launcher Grenade Launcher Build | -11 -10 -9 -8 ------- Run | Yrd Mat Mat Mat Slots Evolved 4 | . . 2 2 Power 1 | . . . 1 Propulsion 1 | . . 1 . Utility 1 | . . . 1 Weapon 1 | . . 1 . Parts Attached 55 | 6 7 12 30 Power 8 | 1 . 1 6 Engine 5 | 1 . 1 3 Core 3 | . . . 3 Reactor . | . . . . Propulsion 12 | 2 1 4 5 Treads 5 | . . 3 2 Leg 7 | 2 1 1 3 Wheel . | . . . . Hover . | . . . . Flight . | . . . . Utility 11 | 1 2 2 6 Device 5 | . . 2 3 Storage 4 | 1 2 . 1 Processor . | . . . . Hackware . | . . . . Protection 2 | . . . 2 Artifact . | . . . . Weapon 24 | 2 4 5 13 Energy Gun 14 | . 1 4 9 Energy Cannon 1 | . . . 1 Ballistic Gun 5 | 2 1 1 1 Ballistic Cannon 1 | . . . 1 Launcher 3 | . 2 . 1 Special Weapon . | . . . . Impact Weapon . | . . . . Slashing Weapon . | . . . . Piercing Weapon . | . . . . Special Melee Weapon . | . . . . Unidentified Prototypes 3 | . . 1 2 Parts Lost 16 | . . 1 15 Power 3 | . . . 3 Propulsion 5 | . . . 5 Utility 4 | . . 1 3 Weapon 4 | . . . 4 Highest Loss Streak 5 | . . 1 5 To Critical Strikes . | . . . . Average Backups 7 | 3 6 7 8 Power . | . 1 1 . Propulsion 1 | 1 2 1 1 Utility 2 | . . 1 3 Weapon 3 | 1 2 3 3 Tool/Special . | . . . . Unused Backups 8 | . . 2 6 Power 2 | . . . 2 Propulsion 3 | . . 2 1 Utility 3 | . . . 3 Weapon . | . . . . Tool/Special . | . . . . Average Slot Usage (%) 89 | . 93 96 84 Engine 10 | . 14 11 8 Core 3 | . . . 7 Treads 14 | . . 17 18 Leg 11 | . 28 13 5 Device 5 | . . 8 6 Storage 12 | . 22 13 9 Protection 2 | . . . 5 Energy Gun 16 | . 1 23 17 Ballistic Gun 7 | . 24 3 2 Launcher 1 | . 2 4 . Peak Build Rating 29 | 6 7 20 29 Average Rating 17 | 4 6 14 24 On Entrance 7 | . 6 7 16 Avg Prop Armor Cover (%) 4 | . . . 4 Naked Turns . | . . . . Heaviest Build 45 | 10 16 22 45 Greatest Support 69 | 20 20 69 69 Greatest Overweight (x) 2 | 1 . . 2 Average Overweight (x) . | . . . . Largest Inventory Capacity 20 | 8 20 8 10 Average Capacity 8 | 7 8 8 9 Most Carried 10 | 5 8 8 10 Average Carried 7 | 3 6 7 8 Final Capacity 10 | 8 8 8 10 Final Carried 8 | 4 8 8 7 Class Distribution -------------------- 29% | Tank 26% | Mutant 20% | Scavenger-Tank 11% | Gunner 6% | Scavenger-Mutant 5% | Scavenger-Gunner Dominant Class ---------------- Mutant | -10/Materials Tank | -9/Materials Scavenger-Tank | -8/Materials Resources | -11 -10 -9 -8 ----------- Run | Yrd Mat Mat Mat Matter Collected 1106 | 237 187 245 437 Remotely . | . . . . Salvage Created 1603 | . 192 445 966 Parts 96 | . 8 28 60 Haulers Intercepted 1 | . . . 1 Recyclers Shooed . | . . . . Parts Field Recycled . | . . . . Retrieved Matter . | . . . . Parts Self-Destructed . | . . . . Prevented . | . . . . Parts Restored . | . . . . Kills | -11 -10 -9 -8 ------- Run | Yrd Mat Mat Mat Combat Hostiles Destroyed 37 | . 6 8 23 Guns 26 | . 1 8 17 Cannons 1 | . . . 1 AOE 10 | . 5 . 5 Classes Destroyed 9 | . 3 3 3 Hauler 1 | . . . 1 Recycler 1 | . . 1 . Watcher 2 | . 1 1 . Swarmer 5 | . 1 . 4 Grunt 23 | . 5 5 13 Brawler 2 | . . . 2 Duelist 3 | . . 1 2 Protector 1 | . . . 1 Sentry 3 | . . 2 1 Best Kill Streak 5 | . 4 3 5 Combat Bots Only 5 | . 3 3 5 Max Kills in Single Turn 3 | . 3 2 2 Gunslinging 1 | . . . 1 Exploded 2 | . 2 . 2 Melee . | . . . . Uniques/NPCs Destroyed . | . . . . Combat | -11 -10 -9 -8 -------- Run | Yrd Mat Mat Mat Hostile Shots Fired 263 | . 17 32 214 Missed 79 | . 5 10 64 Hits 184 | . 12 22 150 Melee 17 | . . 2 15 Projectile 167 | . 12 20 135 Critical Strikes 20 | . 1 1 18 Actively Blocked 1 | . . . 1 Damage Taken 3137 | . 114 311 2712 Core 602 | . 11 27 564 Absorbed by Shields 80 | . . . 80 Redirected to Shielding 79 | . . . 79 Core Remaining (%) 96 | 100 95 93 . Volleys Fired 97 | 5 15 14 63 Largest 3 | 2 2 3 3 Hottest 203 | 40 70 155 203 Shots Fired 197 | 10 28 38 121 Gun 173 | 10 25 35 103 Cannon 16 | . . . 16 Launcher 8 | . 3 3 2 Special . | . . . . Kinetic 60 | 10 23 5 22 Thermal 84 | . 2 18 64 Explosive 8 | . 3 3 2 Electromagnetic 45 | . . 12 33 Robot Hit Streak 7 | 6 5 7 7 Robot Miss Streak 6 | 1 3 5 6 Penetration Max . | . . . . Secondary Targets 5 | . . . 5 Max Gunslinging Chain 1 | . . . 1 Shots Hit Robots 118 | 8 12 28 70 Core Hits 99 | 1 11 29 58 Critical Kills . | . . . . Critical Parts Destroyed . | . . . . Critical Strikes 1 | . . 1 . Burn 1 | . . 1 . Melee Attacks . | . . . . Impact . | . . . . Slashing . | . . . . Piercing . | . . . . Sneak Attacks . | . . . . Combat Hostiles . | . . . . Follow-up Attacks . | . . . . Damage Inflicted 2809 | 61 380 431 1937 Guns 1596 | 61 135 372 1028 Cannons 165 | . . . 165 Explosions 1035 | . 235 59 741 Melee . | . . . . Ramming 13 | . 10 . 3 Kinetic 366 | 61 124 29 152 Thermal 1407 | . 11 170 1226 Explosive 470 | . 235 59 176 Electromagnetic 553 | . . 173 380 Impact . | . . . . Slashing . | . . . . Piercing . | . . . . Highest Corruption . | . . . . Average Corruption . | . . . . Corruption Purged . | . . . . Corruption Blocked . | . . . . Overload Shots . | . . . . Overflow Damage 83 | . . . 83 Projectiles . | . . . . Explosions 83 | . . . 83 Melee . | . . . . Knockbacks 2 | . . . 2 Impact . | . . . . Kinetic 2 | . . . 2 Secondary . | . . . . Self-Inflicted Damage 82 | . . . 82 Shots 2 | . . . 2 Rammed . | . . . . Targets Rammed 2 | . 1 . 1 Kicked 2 | . 1 . 1 Crushed . | . . . . Highest Temperature 629 | . 9 349 629 Average Temperature 194 | . 6 115 214 Received Heat Transfer 1368 | . 42 102 1224 Effects 37 | . . 3 34 Shutdowns 10 | . . . 10 Energy Bleed 3 | . . . 3 Interference 14 | . . 3 11 Matter Decay 1 | . . . 1 Short Circuit 2 | . . . 2 Damage (minor) 5 | . . . 5 Damage (major) 2 | . . . 2 Siege Activations . | . . . . Martial Activations . | . . . . Shielding Activations . | . . . . Robots Disrupted . | . . . . Combat Hostiles . | . . . . Robots Corrupted . | . . . . Combat Hostiles . | . . . . Parts Fried 1 | . . . 1 Impact Corruptions . | . . . . Robots Melted . | . . . . Combat Hostiles . | . . . . Parts Melted 1 | . . . 1 Heat Transferred 1946 | . 25 338 1583 Parts Sabotaged . | . . . . Parts Stolen . | . . . . Parts Stripped . | . . . . Power Chain Reactions 4 | . . . 4 Alert | -11 -10 -9 -8 ------- Run | Yrd Mat Mat Mat Maximum Alert Level 2 | . 1 . 2 Low Security (%) 64 | 100 90 100 29 Level 1 13 | . 9 . 24 Level 2 21 | . . . 45 Level 3 . | . . . . Level 4 . | . . . . Level 5 . | . . . . High Security . | . . . . Max Security . | . . . . Peak Influence 492 | . 250 181 492 Initial 101 | . . 101 67 Average 196 | . 57 124 319 Influence Increases 1318 | . 280 260 778 Destroy 0b10 Robot/C 720 | . 120 160 440 Destroy 0b10 Robot/NC 25 | . 5 10 10 Destroy Leader 126 | . 22 42 62 Successful Hack 5 | . . . 5 Disable Machine 105 | . 15 30 60 Anti-Garrison Action 150 | . . . 150 Destroy Structure 97 | . 28 18 51 Lose Combat Pursuer 90 | . 90 . . Influence Decreases 933 | . 40 339 554 Entered New Map 233 | . . 139 94 Time Decay 540 | . 40 190 310 Lost Part 160 | . . 10 150 Squads Dispatched 6 | . 2 1 3 Investigation 2 | . 1 1 . Extermination . | . . . . Reinforcement 1 | . 1 . . Assault 3 | . . . 3 Garrison . | . . . . Intercept . | . . . . Searches Triggered . | . . . . Construction Impeded . | . . . . Haulers Reinforced . | . . . . Active Scanning Responses . | . . . . Cargo Convoy Interrupts . | . . . . Stealth | -11 -10 -9 -8 --------- Run | Yrd Mat Mat Mat Distress Signals 3 | . 1 1 1 Communications Jammed . | . . . . Distress Signals . | . . . . Times Spotted 55 | . 11 9 35 Peak Tracking Total 8 | . 7 3 8 Tactical Retreats 3 | . 3 . . Traps | -11 -10 -9 -8 ------- Run | Yrd Mat Mat Mat Traps Triggered 2 | . 1 1 . Indirectly . | . . . . Trap Hack Attempts . | . . . . Triggered . | . . . . Disarmed . | . . . . Reprogrammed . | . . . . Reused . | . . . . Traps Extracted . | . . . . Installed . | . . . . Triggered . | . . . . Machines | -11 -10 -9 -8 ---------- Run | Yrd Mat Mat Mat Machines Disabled 8 | . 1 2 5 Max in Single Turn 1 | . 1 1 1 Garrison Access 1 | . . . 1 Machines Repaired . | . . . . Machines Dismantled . | . . . . Machines Sabotaged . | . . . . Overloaded Fab Kills . | . . . . Hacking | -11 -10 -9 -8 --------- Run | Yrd Mat Mat Mat Machines Accessed 3 | . . 1 2 Terminals 2 | . . 1 1 Fabricators . | . . . . Repair Stations . | . . . . Recycling Units . | . . . . Scanalyzers 1 | . . . 1 Garrison Access . | . . . . Total Hacks 3 | . . 1 2 Successful 3 | . . 1 2 Failed . | . . . . Catastrophic . | . . . . Database Lockouts . | . . . . Manual . | . . . . Terminals 2 | . . 1 1 Fabricators . | . . . . Repair Stations . | . . . . Recycling Units . | . . . . Scanalyzers 1 | . . . 1 Garrison Access . | . . . . Terminal Hacks 2 | . . 1 1 Alert Level 1 | . . 1 . Zone Layout 1 | . . . 1 Fabricator Hacks . | . . . . Repair Station Hacks . | . . . . Recycling Unit Hacks . | . . . . Scanalyzer 1 | . . . 1 Retrieve Study 1 | . . . 1 Garrison Access Hacks . | . . . . Unauthorized Hacks . | . . . . Terminals . | . . . . Fabricators . | . . . . Repair Stations . | . . . . Recycling Units . | . . . . Scanalyzers . | . . . . Garrison Access . | . . . . Data Cores Recovered . | . . . . Used . | . . . . Hacking Detections 2 | . . 1 1 Full Trace Events . | . . . . Feedback Events . | . . . . Feedback Blocked . | . . . . Robot Schematics Acquired . | . . . . Robots Built . | . . . . Authchips . | . . . . Time . | . . . . Total Robot Build Rating . | . . . . Part Schematics Acquired . | . . . . Parts Built . | . . . . Authchips . | . . . . Time . | . . . . Total Part Build Rating . | . . . . Part Studies Acquired 1 | . . . 1 Parts Repaired . | . . . . Time . | . . . . Parts Recycled . | . . . . Recycled Matter . | . . . . Retrieved Matter . | . . . . Retrieved Components . | . . . . Parts Scanalyzed . | . . . . Part Schematics Acquired . | . . . . Parts Damaged . | . . . . Bothacking | -11 -10 -9 -8 ------------ Run | Yrd Mat Mat Mat Used RIF Installer . | . . . . Robots Hacked . | . . . . Non-combat . | . . . . Combat . | . . . . Robot Hacks Applied . | . . . . Relay Couplers Released 1 | . . . 1 Machine Destruction 1 | . . . 1 Fabnet Peak Effective % . | . . . . Robots Rewired . | . . . . Allies Hacked . | . . . . Hacks Repelled . | . . . . Allies | -11 -10 -9 -8 -------- Run | Yrd Mat Mat Mat Total Allies . | . . . . Largest Group . | . . . . Highest-Rated Group . | . . . . Highest-Rated Ally . | . . . . Total Orders . | . . . . Ally Attacks . | . . . . Total Damage . | . . . . Kills . | . . . . Allies Corrupted . | . . . . Allies Melted . | . . . . Intel | -11 -10 -9 -8 ------- Run | Yrd Mat Mat Mat Active Infowar (turns) . | . . . . Robot Analysis Total . | . . . . Derelict Logs Recovered . | . . . . Drone Launches . | . . . . Drone Recoveries . | . . . . Exploration | -11 -10 -9 -8 ------------- Run | Yrd Mat Mat Mat Turns Passed 1455 | 107 257 396 695 Spaces Moved 750 | 68 165 227 290 Core 21 | 14 . . 7 Treads 280 | . . 105 175 Legs 449 | 54 165 122 108 Wheels . | . . . . Hover . | . . . . Flight . | . . . . Fastest Speed 50 | 50 120 120 100 Average Speed 136 | 115 120 138 149 Slowest Speed 330 | 120 120 160 330 Overloaded Moves . | . . . . Propulsion Burnouts . | . . . . Robots Hopped . | . . . . Potential Cave-ins . | . . . . Cave-ins Triggered . | . . . . Exploration Rate (%) 21 | 5 32 17 31 Regions Visited 3 Branch Regions . Pre-discovered Areas . | . . . . Known Exits Taken . | . . . . Unknown Exits Taken 3 | 1 1 1 . Scrap Searched . | . . . . Spaces Dug . | . . . . Terrain Destroyed 100 | . 27 22 51 Melee . | . . . . Projectile 6 | . . . 6 AOE 94 | . 27 22 45 Terrain Rammed . | . . . . Walls Destroyed . | . . . . Machines Disabled . | . . . . Actions | -11 -10 -9 -8 --------- Run | Yrd Mat Mat Mat Total 1009 | 88 195 279 447 Wait 18 | . . 11 7 Move 747 | 67 164 226 290 Hop . | . . . . Pick Up 51 | 10 5 5 31 Fast Attach 6 | . . 5 1 Attach 23 | 6 1 . 16 Detach 1 | . . . 1 Swap 36 | . 8 9 19 Drop 28 | . 1 9 18 Fire 97 | 5 15 14 63 Melee . | . . . . Ram . | . . . . Kick 2 | . 1 . 1 Crush . | . . . . Escape Stasis . | . . . . Rewire . | . . . . Trap . | . . . . Miscellaneous . | . . . . Route ------- -11/Scrapyard -10/Materials (discovered 2 exits: *Mat / [*Min]) -9/Materials -8/Materials History --------- Turn | Location | Event 58 | -11/Scrapyard | Discovered new exit (range 13) 108 | -11/Scrapyard | Entered Materials 117 | -10/Materials | Discovered new exit (range 15) 181 | -10/Materials | Discovered new exit (range 13) 319 | -10/Materials | Build established: Mutant 365 | -10/Materials | Entered another Materials area 365 | -9/Materials | Evolved 2 slots: Propulsion x1, Weapon x1 746 | -9/Materials | Discovered new exit (range 8) 761 | -9/Materials | Entered another Materials area 761 | -8/Materials | Evolved 2 slots: Power x1, Utility x1 1161 | -8/Materials | First assault squad dispatched 1201 | -8/Materials | Lost 3 parts (1p2u) 1255 | -8/Materials | Lost 3 parts (3n) 1360 | -8/Materials | Core integrity fell below 50% 1397 | -8/Materials | Lost 3 parts (1p1n1u) 1440 | -8/Materials | Core integrity fell below 20% 1456 | -8/Materials | Destroyed by L-31 Rogue with Katana Last Messages --------------- U-05 Engineer lays Concrete. U-05 Engineer builds a Wall. Kicked M-28 Smith out of the way. U-05 Engineer builds a Wall. M-28 Smith repairs L-31 Rogue. Particle Gun destroyed. Acquired Imp. EM Shotgun. L-31 Rogue suffers critical hit (Burn). Imp. EM Shotgun severed. Acquired Imp. EM Shotgun. Adv. Beam Rifle destroyed. L-31 Rogue destroyed. Acquired 50 matter. Lgt. Nuclear Core destroyed. Hadron Collector disabled. Critical hit (Burn: +37). Carbon-fiber Leg destroyed. Critical hit (Burn: +37). Acquired 49 matter. Imp. EM Shotgun destroyed. Map ----- +----------------------------------------------------+ | ?????#""" | ##############/#####???????????? | | ?######## #?????????# #????????????? | | ?# # ! ########### #????????????? | | ?# # #####%## # #????????????? | | ?# """ + #???# ## """ # ##########???????? | | ?# """ # #???# ## """ # # #???????? | | ?# """ # #???# ## """ # # #???????? | | ?# # #####+## + / """ #???????? | | ?######## # # # # """"" #???????? | | ????????# # =# # # """"" #?#?????? | | ????????# # # ""T"" # # """"" # ?????? | | ????????# + "T" # """"" # # """ ## ?????? | | ????????# # """ ########## # ## ?????? | | ????????# # #????????# # ## ?????? | | ?######## ########????????# ######/#### ?????? | | ?# # #???????????????# #????# #??# ?????? | | ?# # # #?????????????# #????# #### ###??? | | ?# =# ##??????????????# #????# ######"#### | | ?# =+*% ##??????????????# #????# ##] ]][ | | ?# *%#%=[##??????????????# #?? # ## ["" | | ?# #=[[##?????????###??# # # ## Y" | | ######### #????????### #### + # # ""= | | #???# #????????# Y ## # # / | | #???# #????????# ## #?? # # | | #???# #????????#%[l ## ##???# # | | #???# ##########[[[@ # #???# #! | | #???# # # [[mg# #???# ########## | | ????????# #""" #=!=/gb T #???# #????????? | | #+####### #""" # ! # #???# #????????? | | #""" # "" # #???#" #?######?? | | + # """ #######???#%"#? #?? | | #""" # """ #?????????#" # #?? | | #### #""" # """[#??######## # """ #?? | | ????# #""" # #??# + + """ #?? | | !! ?????# # #######??# = * # # """ #?? | | !!??????# #####+####????????#[ "" # # #?? | | !???????# #??????????# """# #?######?? | | ????????# #??###?????# S"# #????????? | | ????????# ####"#?????#! # ########## | | ????????##+##### =#"# ############+## # ! # | | ???????????????# #=%= # # # [ = # | | ????????????? # # ! !% # %! #" #!= = # | | ?????????????" + # * #! * /#%[#/%=[ # | | ???????????????# # # [ %/" +%=%! # | | ???????????????# + %=% # [%! !# !#= """ # | | ???????????????# # #* """]% # # """ # | | ???????????????# # # """%[[#### """ # | | ??????????????## " # "" [ #??# !# | | ??????????+ " !=%= # #??########## | | ??????????#########""""=""""##########???????????? | +----------------------------------------------------+ Best States ------------- Heat Dissipation 45 Energy Generation 21 Energy Capacity 325 Matter Stores 354 Matter Capacity 450 Sight Range 16 Terrain Scan Density 10 Additional Mass Support 9 Armor Coverage 600 Propulsion Shielding 66 Evasion (%) 55 Recoil Reduction 3 Item Schematics ----------------- None Robot Schematics ------------------ None Fabricated ------------ Nothing Repaired ---------- Nothing Studied --------- Arm. Treads | -8/Materials | Hacked Alien Tech Used ----------------- None Achievements -------------- Item+ Significant Disruption That Tickles Challenges ------------ None Game ------ Seed UtilityMeleePit Manual? 0 Play Time 00:28:04 Cumulative 3.2 hours Start 2025.11.15 @ 12:25:03 End 2025.11.15 @ 14:45:46 Sessions 2 Manual Loads 0 Difficulty Rogue Special Mode None Game No. 4 Rogue 4 Adventurer 0 Explorer 0 Win Type - Total 0 Types 0/0/0/0/0/0/0/0/0/0 Lore% 2 Gallery% 8 Achievement% 7 Wizard Run 0 Options --------- Layout 1 ASCII 0 Keyboard 0 Movement Mouse Keybinds 0 Fullscreen 2 Font 32/SmallcapsGlow Map View 50x35 Zoom Use 0% Tactical HUD 0 Map Filters NONE Filters NONE Steam 1 RUN: 71a5878c-775e-4f14-b8f7-1855e652c9eb